[Event "*** Titled Tuesday Blitz"]
[Site "Chess.com"]
[Date "2020.03.03"]
[Round "4"]
[White "LawrenceTrent"]
[Black "gmcorrales"]
[Result "1-0"]
[WhiteElo "2602"]
[BlackElo "2772"]
[TimeControl "180+1"]
[EndTime "9:42:20 PST"]
[Termination "LawrenceTrent won by resignation"]

1. d4 {[%clk 0:03:00.9]} 1... Nf6 {[%clk 0:02:56.4]} 2. Nc3 {[%clk 0:02:55.7]}
2... d5 {[%clk 0:02:54.9]} 3. Bf4 {[%clk 0:02:53.9]} 3... c6 {[%clk 0:02:52.9]}
4. e3 {[%clk 0:02:53.6]} 4... Bf5 {[%clk 0:02:51.7]} 5. Bd3 {[%clk 0:02:50.1]}
5... Bg6 {[%clk 0:02:50.8]} 6. Nf3 {[%clk 0:02:41.1]} 6... e6 {[%clk 0:02:50.4]}
7. Ne5 {[%clk 0:02:41.5]} 7... Nbd7 {[%clk 0:02:48.9]} 8. h4 {[%clk 0:02:35]}
8... Nxe5 {[%clk 0:02:46.9]} 9. Bxe5 {[%clk 0:02:33.7]} 9... Bb4 {[%clk
0:02:44.4]} 10. h5 {[%clk 0:02:29.3]} 10... Bxd3 {[%clk 0:02:35.2]} 11. cxd3
{[%clk 0:02:30.2]} 11... Bd6 {[%clk 0:01:45.1]} 12. h6 {[%clk 0:02:14.4]} 12...
Bxe5 {[%clk 0:01:37.9]} 13. hxg7 {[%clk 0:02:12.7]} 13... Rg8 {[%clk 0:01:35.7]}
14. dxe5 {[%clk 0:02:12.7]} 14... Nd7 {[%clk 0:01:36]} 15. Rxh7 {[%clk
0:02:04.8]} 15... Qg5 {[%clk 0:01:25.7]} 16. Qh5 {[%clk 0:01:51.3]} 16... Qxe5
{[%clk 0:01:05.3]} 17. Qxe5 {[%clk 0:01:43.6]} 17... Nxe5 {[%clk 0:01:06.2]} 18.
Ke2 {[%clk 0:01:43.9]} 18... Ke7 {[%clk 0:01:05.9]} 19. Rah1 {[%clk 0:01:38]}
19... Rae8 {[%clk 0:01:05.3]} 20. R1h3 {[%clk 0:01:16.7]} 20... f6 {[%clk
0:01:02.9]} 21. f4 {[%clk 0:01:14.2]} 21... Ng4 {[%clk 0:01:00]} 22. Rg3 {[%clk
0:01:06.5]} 22... f5 {[%clk 0:00:59.7]} 23. Kd2 {[%clk 0:01:06.8]} 23... Kf6
{[%clk 0:00:59.7]} 24. Ne2 {[%clk 0:01:06]} 24... Rxg7 {[%clk 0:00:59]} 25. Rxg7
{[%clk 0:01:05.2]} 25... Kxg7 {[%clk 0:00:59.9]} 26. Nd4 {[%clk 0:01:03.1]}
26... Kf6 {[%clk 0:00:59.7]} 27. Rh3 {[%clk 0:01:01.7]} 27... Kg7 {[%clk
0:00:47.2]} 28. Nf3 {[%clk 0:01:01.3]} 28... c5 {[%clk 0:00:40.1]} 29. Ng5
{[%clk 0:01:00.6]} 29... Nf6 {[%clk 0:00:38.3]} 30. Rg3 {[%clk 0:00:58]} 30...
Nh5 {[%clk 0:00:25.2]} 31. Rh3 {[%clk 0:00:57.7]} 31... Kg6 {[%clk 0:00:24]} 32.
Nf3 {[%clk 0:00:53.2]} 32... Rh8 {[%clk 0:00:19.4]} 33. Ne5+ {[%clk 0:00:51.3]}
33... Kg7 {[%clk 0:00:19.6]} 34. g4 {[%clk 0:00:43.6]} 34... fxg4 {[%clk
0:00:19.4]} 35. Nxg4 {[%clk 0:00:42.7]} 35... d4 {[%clk 0:00:19.1]} 36. Ne5
{[%clk 0:00:39.6]} 36... dxe3+ {[%clk 0:00:12.3]} 37. Kxe3 {[%clk 0:00:39.6]}
37... b6 {[%clk 0:00:10.7]} 38. Nc4 {[%clk 0:00:32.1]} 38... Nf6 {[%clk
0:00:08.4]} 39. Rxh8 {[%clk 0:00:31.9]} 39... Kxh8 {[%clk 0:00:09.3]} 40. Nd6
{[%clk 0:00:31.8]} 40... Kg7 {[%clk 0:00:08.8]} 41. Nc8 {[%clk 0:00:31.8]} 41...
Nd5+ {[%clk 0:00:09.3]} 42. Ke4 {[%clk 0:00:30.2]} 42... a5 {[%clk 0:00:09.2]}
43. Ke5 {[%clk 0:00:28.6]} 43... Kf7 {[%clk 0:00:09.5]} 44. a3 {[%clk
0:00:27.2]} 44... a4 {[%clk 0:00:09.7]} 45. f5 {[%clk 0:00:27]} 45... Ne3 {[%clk
0:00:04.9]} 46. fxe6+ {[%clk 0:00:26.7]} 46... Ke8 {[%clk 0:00:05.8]} 47. Nxb6
{[%clk 0:00:26.1]} 47... Kd8 {[%clk 0:00:03.8]} 48. Nxa4 {[%clk 0:00:26.3]}
48... c4 {[%clk 0:00:04]} 49. d4 {[%clk 0:00:25.4]} 49... Nd1 {[%clk 0:00:02.5]}
50. d5 {[%clk 0:00:25.8]} 50... Ne3 {[%clk 0:00:01.5]} 51. d6 {[%clk 0:00:25.9]}
51... Ng4+ {[%clk 0:00:02.3]} 52. Kd5 {[%clk 0:00:25.5]} 52... Nf6+ {[%clk
0:00:02.8]} 53. Kc6 {[%clk 0:00:25.9]} 53... Ne4 {[%clk 0:00:03.2]} 54. Nc5
{[%clk 0:00:24.9]} 54... Ke8 {[%clk 0:00:04.1]} 55. Nxe4 {[%clk 0:00:24.7]} 1-0

[Event "*** Titled Tuesday Blitz"]
[Site "Chess.com"]
[Date "2020.03.03"]
[Round "4"]
[White "Lubov_Gordyk"]
[Black "Noam_Vitenberg"]
[Result "1-0"]
[WhiteElo "2641"]
[BlackElo "2411"]
[TimeControl "180+1"]
[EndTime "9:42:21 PST"]
[Termination "Lubov_Gordyk won on time"]

1. e4 {[%clk 0:03:00.9]} 1... c6 {[%clk 0:02:52.8]} 2. d3 {[%clk 0:03:00.3]}
2... d5 {[%clk 0:02:50.5]} 3. Nf3 {[%clk 0:03:00.6]} 3... Bg4 {[%clk 0:02:49.8]}
4. Be2 {[%clk 0:03:00.1]} 4... e6 {[%clk 0:02:42.5]} 5. O-O {[%clk 0:02:57.9]}
5... Nf6 {[%clk 0:02:42.5]} 6. Ne5 {[%clk 0:02:56.4]} 6... Bxe2 {[%clk
0:02:41.4]} 7. Qxe2 {[%clk 0:02:56.9]} 7... Be7 {[%clk 0:02:40.6]} 8. Nd2 {[%clk
0:02:50.8]} 8... O-O {[%clk 0:02:40.5]} 9. Nef3 {[%clk 0:02:47.2]} 9... c5
{[%clk 0:02:36.4]} 10. b3 {[%clk 0:02:46.8]} 10... Nc6 {[%clk 0:02:36.2]} 11.
Bb2 {[%clk 0:02:46.6]} 11... Rc8 {[%clk 0:02:34.4]} 12. e5 {[%clk 0:02:34.9]}
12... Nd7 {[%clk 0:02:33.2]} 13. c4 {[%clk 0:02:34.6]} 13... d4 {[%clk
0:02:10.9]} 14. Rfe1 {[%clk 0:02:33.9]} 14... Qc7 {[%clk 0:02:09]} 15. Nf1
{[%clk 0:02:31.6]} 15... Rfe8 {[%clk 0:02:05.9]} 16. Ng3 {[%clk 0:02:23.9]}
16... a6 {[%clk 0:01:50.5]} 17. Bc1 {[%clk 0:02:21.4]} 17... b5 {[%clk
0:01:49.5]} 18. h4 {[%clk 0:02:18.3]} 18... bxc4 {[%clk 0:01:47.1]} 19. bxc4
{[%clk 0:02:18]} 19... Rb8 {[%clk 0:01:39.5]} 20. h5 {[%clk 0:02:14.5]} 20... h6
{[%clk 0:01:38.7]} 21. Bf4 {[%clk 0:02:12.5]} 21... Rb7 {[%clk 0:01:33]} 22. Nh2
{[%clk 0:02:10.9]} 22... Reb8 {[%clk 0:01:31.8]} 23. Ng4 {[%clk 0:02:10.5]}
23... Rb2 {[%clk 0:01:30.7]} 24. Qf3 {[%clk 0:01:58.9]} 24... Bf8 {[%clk
0:01:18.4]} 25. Ne4 {[%clk 0:01:52]} 25... Nb4 {[%clk 0:01:14.5]} 26. Qg3 {[%clk
0:01:44.2]} 26... Kh8 {[%clk 0:01:09.2]} 27. Nef6 {[%clk 0:01:29.6]} 27... gxf6
{[%clk 0:00:58.4]} 28. exf6 {[%clk 0:01:21]} 28... Qd8 {[%clk 0:00:23.2]} 29.
Bxb8 {[%clk 0:01:03]} 29... Qxb8 {[%clk 0:00:20.5]} 30. Qxb8 {[%clk 0:01:01.4]}
30... Nxb8 {[%clk 0:00:19.8]} 31. a3 {[%clk 0:01:01.2]} 31... Nxd3 {[%clk
0:00:18]} 32. Red1 {[%clk 0:00:55.6]} 32... Nf4 {[%clk 0:00:15.2]} 33. Rab1
{[%clk 0:00:54.3]} 33... Rxb1 {[%clk 0:00:13.7]} 34. Rxb1 {[%clk 0:00:53.9]}
34... Nc6 {[%clk 0:00:09.1]} 35. Rb6 {[%clk 0:00:50.8]} 35... Na5 {[%clk
0:00:03.7]} 36. Rb8 {[%clk 0:00:49.8]} 36... Kg8 {[%clk 0:00:03.3]} 37. Nxh6+
{[%clk 0:00:46]} 37... Kh7 {[%clk 0:00:03.9]} 38. Nxf7 {[%clk 0:00:42.8]} 38...
d3 {[%clk 0:00:04]} 39. Rxf8 {[%clk 0:00:38.9]} 39... d2 {[%clk 0:00:03.9]} 40.
Rd8 {[%clk 0:00:38.7]} 40... Nxc4 {[%clk 0:00:02.8]} 41. Ng5+ {[%clk 0:00:32.4]}
41... Kh6 {[%clk 0:00:01.7]} 42. f7 {[%clk 0:00:32.6]} 42... Nd5 {[%clk
0:00:01.1]} 43. f8=Q+ {[%clk 0:00:26.3]} 43... Kxg5 {[%clk 0:00:02]} 44. Rxd5+
{[%clk 0:00:20.5]} 44... exd5 {[%clk 0:00:01.3]} 45. Qg8+ {[%clk 0:00:20.9]} 1-0

[Event "*** Titled Tuesday Blitz"]
[Site "Chess.com"]
[Date "2020.03.03"]
[Round "4"]
[White "youngKID"]
[Black "MarcoRiehle"]
[Result "0-1"]
[WhiteElo "2837"]
[BlackElo "2748"]
[TimeControl "180+1"]
[EndTime "9:42:24 PST"]
[Termination "MarcoRiehle won on time"]

1. Nf3 {[%clk 0:02:58.5]} 1... Nf6 {[%clk 0:02:58.4]} 2. g3 {[%clk 0:02:59]}
2... c5 {[%clk 0:02:57.7]} 3. Bg2 {[%clk 0:02:59.4]} 3... Nc6 {[%clk 0:02:57.8]}
4. O-O {[%clk 0:02:57.8]} 4... e5 {[%clk 0:02:57.8]} 5. c4 {[%clk 0:02:56.9]}
5... d5 {[%clk 0:02:57.5]} 6. cxd5 {[%clk 0:02:56.6]} 6... Nxd5 {[%clk
0:02:58.4]} 7. Nc3 {[%clk 0:02:57]} 7... Be6 {[%clk 0:02:58.7]} 8. d3 {[%clk
0:02:49.5]} 8... Be7 {[%clk 0:02:57.1]} 9. Bd2 {[%clk 0:02:45.1]} 9... O-O
{[%clk 0:02:51.6]} 10. a3 {[%clk 0:02:36.1]} 10... f6 {[%clk 0:02:45.4]} 11. Rc1
{[%clk 0:02:34.9]} 11... Qd7 {[%clk 0:02:38.8]} 12. Qa4 {[%clk 0:02:20.6]} 12...
Rac8 {[%clk 0:02:29.7]} 13. Nxd5 {[%clk 0:02:10.6]} 13... Bxd5 {[%clk
0:02:19.3]} 14. b4 {[%clk 0:02:10.1]} 14... Rfd8 {[%clk 0:02:05.6]} 15. Rfe1
{[%clk 0:01:27.6]} 15... b6 {[%clk 0:01:48.3]} 16. bxc5 {[%clk 0:01:25]} 16...
Bxc5 {[%clk 0:01:45.8]} 17. Bb4 {[%clk 0:01:18.1]} 17... Bxb4 {[%clk 0:01:25.6]}
18. axb4 {[%clk 0:01:16.9]} 18... Be6 {[%clk 0:01:18.7]} 19. Ng5 {[%clk
0:01:02.6]} 19... fxg5 {[%clk 0:01:05.6]} 20. Bxc6 {[%clk 0:00:58.7]} 20... Qe7
{[%clk 0:01:04.4]} 21. Be4 {[%clk 0:00:58.3]} 21... g6 {[%clk 0:00:59.2]} 22. b5
{[%clk 0:00:49.3]} 22... Kg7 {[%clk 0:00:54.2]} 23. Rc6 {[%clk 0:00:46]} 23...
Bd7 {[%clk 0:00:41.1]} 24. Qxa7 {[%clk 0:00:43]} 24... Qb4 {[%clk 0:00:39.2]}
25. Rxc8 {[%clk 0:00:38.2]} 25... Qxe1+ {[%clk 0:00:37.6]} 26. Kg2 {[%clk
0:00:38.6]} 26... Kh6 {[%clk 0:00:10.8]} 27. Rxd8 {[%clk 0:00:36.4]} 27... Bh3+
{[%clk 0:00:11.2]} 28. Kxh3 {[%clk 0:00:34.9]} 28... Qf1+ {[%clk 0:00:11.4]} 29.
Bg2 {[%clk 0:00:31.5]} 29... g4+ {[%clk 0:00:04.5]} 30. Kxg4 {[%clk 0:00:27.2]}
30... Qxf2 {[%clk 0:00:03]} 31. Qd7 {[%clk 0:00:08.8]} 31... Qxe2+ {[%clk
0:00:02.7]} 32. Bf3 {[%clk 0:00:05.9]} 32... Qxh2 {[%clk 0:00:03.1]} 33. Qf5
{[%clk 0:00:02.2]} 33... gxf5+ {[%clk 0:00:01]} 34. Kxf5 {[%clk 0:00:03.1]}
34... Qf2 {[%clk 0:00:01.7]} 0-1

[Event "*** Titled Tuesday Blitz"]
[Site "Chess.com"]
[Date "2020.03.03"]
[Round "4"]
[White "Leonid_Starozhilov"]
[Black "Zq1"]
[Result "1-0"]
[WhiteElo "2718"]
[BlackElo "2546"]
[TimeControl "180+1"]
[EndTime "9:42:30 PST"]
[Termination "Leonid_Starozhilov won on time"]

1. b3 {[%clk 0:03:00.4]} 1... d5 {[%clk 0:02:59.1]} 2. Bb2 {[%clk 0:03:01.3]}
2... c5 {[%clk 0:02:59.2]} 3. e3 {[%clk 0:03:01.5]} 3... Nc6 {[%clk 0:02:58.1]}
4. Bb5 {[%clk 0:03:01.6]} 4... Bd7 {[%clk 0:02:57.7]} 5. Nf3 {[%clk 0:03:01.5]}
5... a6 {[%clk 0:02:57.2]} 6. Bxc6 {[%clk 0:03:01.6]} 6... Bxc6 {[%clk
0:02:57.4]} 7. Ne5 {[%clk 0:03:01.8]} 7... Rc8 {[%clk 0:02:56.6]} 8. O-O {[%clk
0:03:01.2]} 8... Nf6 {[%clk 0:02:54.7]} 9. d3 {[%clk 0:03:01.1]} 9... g6 {[%clk
0:02:49.5]} 10. Nd2 {[%clk 0:02:44.8]} 10... Bg7 {[%clk 0:02:47.7]} 11. f4
{[%clk 0:02:29.3]} 11... O-O {[%clk 0:02:46.5]} 12. Ndf3 {[%clk 0:02:29.8]}
12... Be8 {[%clk 0:02:46.3]} 13. Qd2 {[%clk 0:02:10.9]} 13... b5 {[%clk
0:02:27.1]} 14. a3 {[%clk 0:02:08.6]} 14... Nh5 {[%clk 0:02:18.8]} 15. b4 {[%clk
0:01:53.7]} 15... f6 {[%clk 0:02:01.9]} 16. Ng4 {[%clk 0:01:53.3]} 16... Qc7
{[%clk 0:01:40.2]} 17. Rac1 {[%clk 0:01:37.4]} 17... d4 {[%clk 0:01:30.7]} 18.
bxc5 {[%clk 0:01:23.1]} 18... dxe3 {[%clk 0:01:28.6]} 19. Qxe3 {[%clk
0:01:23.5]} 19... Nxf4 {[%clk 0:01:22.3]} 20. Rfe1 {[%clk 0:01:10.7]} 20... e5
{[%clk 0:01:20.6]} 21. d4 {[%clk 0:01:01.3]} 21... exd4 {[%clk 0:01:19.7]} 22.
Bxd4 {[%clk 0:00:57.6]} 22... Bc6 {[%clk 0:01:13.9]} 23. Qb3+ {[%clk 0:00:47.3]}
23... Bd5 {[%clk 0:01:13.1]} 24. Qc3 {[%clk 0:00:47.2]} 24... Qc6 {[%clk
0:01:06.5]} 25. Re3 {[%clk 0:00:39.9]} 25... Rce8 {[%clk 0:00:57.3]} 26. Rce1
{[%clk 0:00:39.5]} 26... Rxe3 {[%clk 0:00:57]} 27. Qxe3 {[%clk 0:00:34]} 27...
g5 {[%clk 0:00:42]} 28. h4 {[%clk 0:00:21.9]} 28... h5 {[%clk 0:00:30.1]} 29.
Ngh2 {[%clk 0:00:22]} 29... Nxg2 {[%clk 0:00:24]} 30. Kxg2 {[%clk 0:00:22.1]}
30... g4 {[%clk 0:00:24.3]} 31. Kf2 {[%clk 0:00:22.1]} 31... gxf3 {[%clk
0:00:21.6]} 32. Nxf3 {[%clk 0:00:21.3]} 32... Kf7 {[%clk 0:00:17.4]} 33. Qf4
{[%clk 0:00:19.3]} 33... Re8 {[%clk 0:00:14.6]} 34. Ne5+ {[%clk 0:00:17.2]}
34... Rxe5 {[%clk 0:00:12.9]} 35. Rxe5 {[%clk 0:00:17.2]} 35... Bh1 {[%clk
0:00:07.7]} 36. Re1 {[%clk 0:00:14]} 36... Qg2+ {[%clk 0:00:06.5]} 37. Ke3
{[%clk 0:00:14.8]} 37... Bh6 {[%clk 0:00:06]} 38. Qxh6 {[%clk 0:00:13.4]} 38...
Qe4+ {[%clk 0:00:06.1]} 39. Kf2 {[%clk 0:00:11.6]} 39... Qxh4+ {[%clk
0:00:06.2]} 40. Ke2 {[%clk 0:00:10.2]} 40... Qe4+ {[%clk 0:00:04.7]} 41. Qe3
{[%clk 0:00:09.7]} 41... Qxc2+ {[%clk 0:00:02.4]} 42. Qd2 {[%clk 0:00:10.3]}
42... Bf3+ {[%clk 0:00:01.1]} 43. Ke3 {[%clk 0:00:09.2]} 43... Qe4+ {[%clk
0:00:01.5]} 44. Kf2 {[%clk 0:00:09.7]} 44... Qg4 {[%clk 0:00:01.1]} 45. Rg1
{[%clk 0:00:08.2]} 45... Qf5 {[%clk 0:00:01]} 46. Qe3 {[%clk 0:00:07.1]} 1-0

[Event "*** Titled Tuesday Blitz"]
[Site "Chess.com"]
[Date "2020.03.03"]
[Round "4"]
[White "ural58"]
[Black "Berardino"]
[Result "0-1"]
[WhiteElo "2425"]
[BlackElo "2646"]
[TimeControl "180+1"]
[EndTime "9:42:33 PST"]
[Termination "Berardino won on time"]

1. e4 {[%clk 0:02:47.4]} 1... c5 {[%clk 0:02:59.6]} 2. b3 {[%clk 0:02:47.2]}
2... b6 {[%clk 0:02:59.3]} 3. Bb2 {[%clk 0:02:46.8]} 3... Bb7 {[%clk 0:03:00]}
4. Qf3 {[%clk 0:02:45.9]} 4... Nc6 {[%clk 0:02:55.5]} 5. Qg3 {[%clk 0:02:43.2]}
5... Nf6 {[%clk 0:02:49.3]} 6. e5 {[%clk 0:02:42.2]} 6... Nd5 {[%clk 0:02:43]}
7. Nf3 {[%clk 0:02:37.4]} 7... e6 {[%clk 0:02:35.4]} 8. Na3 {[%clk 0:02:33]}
8... a6 {[%clk 0:02:24.3]} 9. Nc4 {[%clk 0:02:32.7]} 9... g6 {[%clk 0:01:35.1]}
10. h4 {[%clk 0:02:28.1]} 10... b5 {[%clk 0:01:23.1]} 11. Nd6+ {[%clk
0:02:25.1]} 11... Bxd6 {[%clk 0:01:23.5]} 12. exd6 {[%clk 0:02:26]} 12... Rg8
{[%clk 0:01:15.1]} 13. h5 {[%clk 0:02:25.5]} 13... g5 {[%clk 0:01:12.2]} 14. h6
{[%clk 0:02:21.6]} 14... Ncb4 {[%clk 0:01:04.9]} 15. O-O-O {[%clk 0:02:20.6]}
15... Nxa2+ {[%clk 0:00:54.5]} 16. Kb1 {[%clk 0:02:20.6]} 16... Nab4 {[%clk
0:00:55.1]} 17. Rh5 {[%clk 0:01:39.4]} 17... f6 {[%clk 0:00:40.2]} 18. c3 {[%clk
0:01:39.2]} 18... Nc6 {[%clk 0:00:36.1]} 19. Bd3 {[%clk 0:01:37.5]} 19... Nf4
{[%clk 0:00:28.9]} 20. Bxh7 {[%clk 0:01:35.5]} 20... Rh8 {[%clk 0:00:22]} 21.
Bc2 {[%clk 0:01:23]} 21... Nxh5 {[%clk 0:00:21.5]} 22. Bg6+ {[%clk 0:01:22.8]}
22... Kf8 {[%clk 0:00:21.6]} 23. Bxh5 {[%clk 0:01:23.7]} 23... Rxh6 {[%clk
0:00:18.7]} 24. Rh1 {[%clk 0:01:18.9]} 24... Na5 {[%clk 0:00:17.9]} 25. Kc2
{[%clk 0:01:06.3]} 25... Be4+ {[%clk 0:00:16.5]} 26. d3 {[%clk 0:01:05.5]} 26...
Bg6 {[%clk 0:00:14.2]} 27. Bxg6 {[%clk 0:01:03.3]} 27... Rxh1 {[%clk 0:00:13.6]}
28. Nh2 {[%clk 0:01:01.6]} 28... c4 {[%clk 0:00:11.5]} 29. dxc4 {[%clk
0:00:58.4]} 29... bxc4 {[%clk 0:00:12.4]} 30. b4 {[%clk 0:00:58.8]} 30... Kg7
{[%clk 0:00:10.8]} 31. Be4 {[%clk 0:00:56.1]} 31... Rb8 {[%clk 0:00:10.2]} 32.
f4 {[%clk 0:00:40]} 32... Rxh2 {[%clk 0:00:09]} 33. Qxh2 {[%clk 0:00:39.3]}
33... Qh8 {[%clk 0:00:08.7]} 34. Qxh8+ {[%clk 0:00:38.4]} 34... Rxh8 {[%clk
0:00:09.3]} 35. bxa5 {[%clk 0:00:39.3]} 35... Rh4 {[%clk 0:00:09.2]} 36. Bb7
{[%clk 0:00:37.1]} 36... Rxf4 {[%clk 0:00:08.6]} 37. Bc1 {[%clk 0:00:32.6]}
37... Rf5 {[%clk 0:00:08]} 38. Bxa6 {[%clk 0:00:25.4]} 38... Rxa5 {[%clk
0:00:07.9]} 39. Bxc4 {[%clk 0:00:24.4]} 39... Kf7 {[%clk 0:00:08.1]} 40. Kd3
{[%clk 0:00:17.7]} 40... Rc5 {[%clk 0:00:07.6]} 41. Ba3 {[%clk 0:00:14.5]} 41...
Rf5 {[%clk 0:00:07.4]} 42. Bb5 {[%clk 0:00:13.7]} 42... Rxb5 {[%clk 0:00:06.8]}
0-1

[Event "*** Titled Tuesday Blitz"]
[Site "Chess.com"]
[Date "2020.03.03"]
[Round "4"]
[White "Gabix_94"]
[Black "MITerryble"]
[Result "1-0"]
[WhiteElo "2697"]
[BlackElo "2921"]
[TimeControl "180+1"]
[EndTime "9:42:34 PST"]
[Termination "Gabix_94 won on time"]

1. d4 {[%clk 0:03:00.9]} 1... e6 {[%clk 0:02:57.7]} 2. Nf3 {[%clk 0:03:00.4]}
2... Nf6 {[%clk 0:02:55.4]} 3. c4 {[%clk 0:03:00.3]} 3... Bb4+ {[%clk
0:02:54.9]} 4. Nbd2 {[%clk 0:02:58.5]} 4... O-O {[%clk 0:02:54]} 5. a3 {[%clk
0:02:57.8]} 5... Be7 {[%clk 0:02:52.2]} 6. e4 {[%clk 0:02:57.5]} 6... d6 {[%clk
0:02:52.3]} 7. Bd3 {[%clk 0:02:57.3]} 7... Nbd7 {[%clk 0:02:51.9]} 8. O-O {[%clk
0:02:55.7]} 8... e5 {[%clk 0:02:52.4]} 9. h3 {[%clk 0:02:55.4]} 9... Nh5 {[%clk
0:02:51.1]} 10. Re1 {[%clk 0:02:52.3]} 10... g6 {[%clk 0:02:50.8]} 11. Bf1
{[%clk 0:02:52.4]} 11... a5 {[%clk 0:02:49.8]} 12. Nb1 {[%clk 0:02:50.8]} 12...
Bf6 {[%clk 0:02:43.6]} 13. Nc3 {[%clk 0:02:48.4]} 13... c6 {[%clk 0:02:40.2]}
14. Bh6 {[%clk 0:02:42.5]} 14... Re8 {[%clk 0:02:40.2]} 15. Qd2 {[%clk
0:02:41.3]} 15... exd4 {[%clk 0:02:37.5]} 16. Nxd4 {[%clk 0:02:42.2]} 16... Nc5
{[%clk 0:02:37.9]} 17. Rad1 {[%clk 0:02:41.3]} 17... a4 {[%clk 0:02:37.6]} 18.
g4 {[%clk 0:02:32.7]} 18... Ng7 {[%clk 0:02:35.6]} 19. f4 {[%clk 0:02:29.9]}
19... Qb6 {[%clk 0:02:13.6]} 20. Kh2 {[%clk 0:02:24.9]} 20... Bd7 {[%clk
0:01:48.4]} 21. g5 {[%clk 0:02:15]} 21... Be7 {[%clk 0:01:48.6]} 22. f5 {[%clk
0:02:04.2]} 22... Bf8 {[%clk 0:01:42.2]} 23. f6 {[%clk 0:01:45.8]} 23... Nge6
{[%clk 0:01:40.4]} 24. Bxf8 {[%clk 0:01:46.1]} 24... Nxf8 {[%clk 0:01:32.5]} 25.
Nf3 {[%clk 0:01:43.1]} 25... Rad8 {[%clk 0:01:25.4]} 26. Qf2 {[%clk 0:01:32.9]}
26... Bc8 {[%clk 0:01:07.9]} 27. Rd2 {[%clk 0:01:31.2]} 27... Qc7 {[%clk
0:01:02.5]} 28. Qg3 {[%clk 0:01:29]} 28... Nb3 {[%clk 0:01:02.2]} 29. Rdd1
{[%clk 0:01:25.7]} 29... Nc5 {[%clk 0:01:01.7]} 30. Rd2 {[%clk 0:01:22]} 30...
h5 {[%clk 0:00:54.8]} 31. Red1 {[%clk 0:01:13]} 31... Rxe4 {[%clk 0:00:42.7]}
32. Kg1 {[%clk 0:00:56.7]} 32... Re3 {[%clk 0:00:24.9]} 33. Qf4 {[%clk
0:00:54.4]} 33... Ree8 {[%clk 0:00:24.2]} 34. Rxd6 {[%clk 0:00:52]} 34... Rxd6
{[%clk 0:00:23.5]} 35. Qxd6 {[%clk 0:00:51.6]} 35... Qb6 {[%clk 0:00:24]} 36.
Qd4 {[%clk 0:00:42.6]} 36... Nfe6 {[%clk 0:00:24.1]} 37. Qf2 {[%clk 0:00:42.2]}
37... Qc7 {[%clk 0:00:20.9]} 38. Re1 {[%clk 0:00:40.5]} 38... Rd8 {[%clk
0:00:20.8]} 39. h4 {[%clk 0:00:40.7]} 39... Qf4 {[%clk 0:00:18.3]} 40. Ne2
{[%clk 0:00:30.8]} 40... Qg4+ {[%clk 0:00:16.9]} 41. Qg3 {[%clk 0:00:29.8]}
41... Qxc4 {[%clk 0:00:14.7]} 42. Ned4 {[%clk 0:00:29]} 42... Qd5 {[%clk
0:00:14.6]} 43. Re5 {[%clk 0:00:27.6]} 43... Qd6 {[%clk 0:00:12.4]} 44. Nf5
{[%clk 0:00:19.6]} 44... gxf5 {[%clk 0:00:04.1]} 45. g6 {[%clk 0:00:20.5]} 45...
Kf8 {[%clk 0:00:03]} 46. Ng5 {[%clk 0:00:14.4]} 46... f4 {[%clk 0:00:02.3]} 47.
Nxe6+ {[%clk 0:00:09.3]} 47... Bxe6 {[%clk 0:00:01.9]} 48. Qg5 {[%clk
0:00:09.6]} 1-0

[Event "*** Titled Tuesday Blitz"]
[Site "Chess.com"]
[Date "2020.03.03"]
[Round "4"]
[White "Aygehovit1992"]
[Black "elohunter1999"]
[Result "0-1"]
[WhiteElo "2631"]
[BlackElo "2450"]
[TimeControl "180+1"]
[EndTime "9:42:36 PST"]
[Termination "elohunter1999 won on time"]

1. e4 {[%clk 0:03:00.9]} 1... c5 {[%clk 0:03:00]} 2. Nc3 {[%clk 0:03:00.1]} 2...
Nc6 {[%clk 0:03:00.1]} 3. Bb5 {[%clk 0:02:59.6]} 3... Nd4 {[%clk 0:02:58.8]} 4.
Nf3 {[%clk 0:02:58.9]} 4... a6 {[%clk 0:02:56.4]} 5. Bd3 {[%clk 0:02:58.5]} 5...
g6 {[%clk 0:02:55.5]} 6. O-O {[%clk 0:02:57.9]} 6... Bg7 {[%clk 0:02:55]} 7. Re1
{[%clk 0:02:58.5]} 7... d6 {[%clk 0:02:48.5]} 8. Nxd4 {[%clk 0:02:54.8]} 8...
cxd4 {[%clk 0:02:47.4]} 9. Ne2 {[%clk 0:02:55]} 9... b6 {[%clk 0:02:35.3]} 10.
c3 {[%clk 0:02:54]} 10... dxc3 {[%clk 0:02:34.5]} 11. bxc3 {[%clk 0:02:53.7]}
11... Nf6 {[%clk 0:02:33.6]} 12. Bc2 {[%clk 0:02:45.8]} 12... Bb7 {[%clk
0:02:32.9]} 13. d3 {[%clk 0:02:34.3]} 13... O-O {[%clk 0:02:31.1]} 14. Rb1
{[%clk 0:02:34.1]} 14... Rc8 {[%clk 0:02:26.2]} 15. Be3 {[%clk 0:02:33.5]} 15...
Nd7 {[%clk 0:02:26.2]} 16. d4 {[%clk 0:02:30.6]} 16... Rc7 {[%clk 0:02:23.5]}
17. f4 {[%clk 0:02:24.4]} 17... Qa8 {[%clk 0:02:22.9]} 18. e5 {[%clk 0:02:23.8]}
18... Bxg2 {[%clk 0:02:14.6]} 19. Qd2 {[%clk 0:02:06.8]} 19... Rfc8 {[%clk
0:01:57.7]} 20. Rb3 {[%clk 0:01:04.9]} 20... b5 {[%clk 0:01:22]} 21. exd6 {[%clk
0:00:32.2]} 21... exd6 {[%clk 0:01:21.7]} 22. f5 {[%clk 0:00:32.7]} 22... Bd5
{[%clk 0:01:04.9]} 23. Nf4 {[%clk 0:00:23.7]} 23... Bxb3 {[%clk 0:01:00.2]} 24.
Bxb3 {[%clk 0:00:24.6]} 24... Nb6 {[%clk 0:00:44.4]} 25. fxg6 {[%clk 0:00:24.1]}
25... hxg6 {[%clk 0:00:43.9]} 26. Nxg6 {[%clk 0:00:18]} 26... Nc4 {[%clk
0:00:44]} 27. Bxc4 {[%clk 0:00:18.4]} 27... bxc4 {[%clk 0:00:44.9]} 28. Nf4
{[%clk 0:00:16.7]} 28... Re8 {[%clk 0:00:41.4]} 29. Nh5 {[%clk 0:00:15.9]} 29...
Rce7 {[%clk 0:00:35.2]} 30. Nxg7 {[%clk 0:00:07.2]} 30... Kxg7 {[%clk
0:00:34.4]} 31. Bh6+ {[%clk 0:00:05]} 31... Kh7 {[%clk 0:00:34]} 32. Rxe7 {[%clk
0:00:03]} 32... Rxe7 {[%clk 0:00:34.1]} 33. Qg5 {[%clk 0:00:03.3]} 33... Qg8
{[%clk 0:00:32.5]} 34. Kf2 {[%clk 0:00:02.5]} 34... Qxg5 {[%clk 0:00:27.3]} 35.
Bxg5 {[%clk 0:00:03.4]} 35... Rb7 {[%clk 0:00:27.7]} 36. Ke3 {[%clk 0:00:02.9]}
36... Rb2 {[%clk 0:00:27.4]} 37. d5 {[%clk 0:00:03.2]} 37... Rxa2 {[%clk
0:00:23]} 38. Be7 {[%clk 0:00:03.4]} 38... Rxh2 {[%clk 0:00:18.4]} 39. Bxd6
{[%clk 0:00:01.8]} 39... Rc2 {[%clk 0:00:10]} 40. Kd4 {[%clk 0:00:01.6]} 40...
Kg6 {[%clk 0:00:09.4]} 41. Kxc4 {[%clk 0:00:01.6]} 41... f5 {[%clk 0:00:09.2]}
42. Kd3 {[%clk 0:00:01.2]} 42... Rc1 {[%clk 0:00:09.1]} 43. c4 {[%clk
0:00:01.7]} 43... Kf7 {[%clk 0:00:08.7]} 44. c5 {[%clk 0:00:02.1]} 44... f4
{[%clk 0:00:07.2]} 45. c6 {[%clk 0:00:01.9]} 45... f3 {[%clk 0:00:06.6]} 46. Ke3
{[%clk 0:00:01.3]} 46... Rc3+ {[%clk 0:00:02.4]} 47. Kf2 {[%clk 0:00:01.2]}
47... Rd3 {[%clk 0:00:02.7]} 0-1